fUST/lending_fUST_20250127
["ID","MTS","AMOUNT","RATE_DAILY","PERIOD"]
[350542941,1737957052121,-500.0,0.00021546,2]
[350542942,1737957052132,-500.0,0.00021546,2]
[350542943,1737957052142,-500.0,0.00021546,2]
[350542944,1737957052151,-500.0,0.00021546,2]
[350542945,1737957052160,-500.0,0.00021546,2]
[350542946,1737957052170,-417.11823162,0.00021546,2]
[350542947,1737957052179,-500.0,0.00021546,2]
[350542948,1737957052188,-500.0,0.00021546,2]
[350542949,1737957052197,-3456.046116,0.00021546,2]
[350542950,1737957052207,-503.97109054,0.00021546,2]
[350542951,1737957052216,-500.0,0.00021546,2]
[350542952,1737957052225,-3456.046116,0.00021546,2]
[350542953,1737957052235,-500.0,0.00021546,2]
[350542954,1737957052244,-500.0,0.00021546,2]
[350542955,1737957052253,-500.0,0.00021546,2]
[350542956,1737957052262,-500.0,0.00021547,2]
[350542957,1737957052272,-503.07430591,0.00021547,2]
[350542958,1737957052281,-225.99511947,0.00021547,2]
[350542959,1737957052291,-500.0,0.00021547,2]
[350542960,1737957052300,-519.50629522,0.00021547,2]
[350542961,1737957052309,-500.95082983,0.00021547,2]
[350542962,1737957052319,-500.0,0.00021547,2]
[350542963,1737957052329,-500.0,0.00021547,2]
[350542964,1737957052338,-500.0,0.00021547,2]
[350542965,1737957052347,-500.0,0.00021547,2]
[350542966,1737957052356,-500.0,0.00021547,2]
[350542967,1737957052366,-500.0,0.00021547,2]
[350542968,1737957052375,-500.0,0.00021547,2]
[350542969,1737957052387,-500.0,0.00021547,2]
[350542970,1737957052397,-500.0,0.00021547,2]
[350542971,1737957052407,-500.0,0.00021547,2]
[350542972,1737957052416,-500.0,0.00021547,2]
[350542973,1737957052426,-500.0,0.00021547,2]
[350542974,1737957052435,-500.0,0.00021547,2]
[350542975,1737957052444,-500.0,0.00021547,2]
[350542976,1737957052454,-500.0,0.00021547,2]
[350542977,1737957052463,-500.0,0.00021547,2]
[350542978,1737957052472,-500.0,0.00021547,2]
[350542979,1737957052481,-500.0,0.00021547,2]
[350542980,1737957052491,-500.0,0.00021547,2]
[350542981,1737957052500,-500.0,0.00021547,2]
[350542982,1737957052509,-500.0,0.00021547,2]
[350542983,1737957052519,-500.0,0.00021547,2]
[350542984,1737957052528,-500.0,0.00021547,2]
[350542985,1737957052537,-500.0,0.00021547,2]
[350542986,1737957052547,-500.0,0.00021547,2]
[350542987,1737957052557,-500.0,0.00021547,2]
[350542988,1737957052566,-500.0,0.00021547,2]
[350542989,1737957052576,-500.0,0.00021547,2]
[350542990,1737957052585,-500.0,0.00021547,2]
[350542991,1737957052595,-242.59725368,0.00021547,2]
[350542992,1737957052604,-500.0,0.00021547,2]
[350542993,1737957052614,-500.0,0.00021547,2]
[350542994,1737957052624,-500.0,0.00021547,2]
[350542995,1737957052635,-553.17055382,0.00021547,2]
[350542996,1737957052646,-500.0,0.00021547,2]
[350542997,1737957052655,-259.84897959,0.00021547,2]
[350542998,1737957052665,-648.24938065,0.00021547,2]
[350542999,1737957052674,-500.0,0.00021547,2]
[350543000,1737957052684,-500.0,0.00021547,2]
[350543001,1737957052693,-500.0,0.00021547,2]
[350543002,1737957052702,-500.0,0.00021547,2]
[350543003,1737957052712,-500.0,0.00021547,2]
[350543004,1737957052721,-193.05838903,0.00021547,2]
[350543005,1737957052730,-199.96569155,0.00021547,2]
[350543006,1737957052739,-500.0,0.00021547,2]
[350543007,1737957052749,-500.0,0.00021547,2]
[350543008,1737957052759,-500.0,0.00021547,2]
[350543009,1737957052770,-500.0,0.00021547,2]
[350543010,1737957052780,-500.0,0.00021547,2]
[350543011,1737957052789,-500.0,0.00021547,2]
[350543012,1737957052799,-500.0,0.00021547,2]
[350543013,1737957052809,-500.0,0.00021547,2]
[350543014,1737957052818,-500.0,0.00021547,2]
[350543015,1737957052828,-500.0,0.00021547,2]
[350543016,1737957052838,-500.0,0.00021547,2]
[350543017,1737957052848,-500.0,0.00021681,2]
[350543018,1737957052858,-379.41956501,0.00021681,2]
[350543019,1737957052867,-500.0,0.00021681,2]
[350543020,1737957052877,-1409.61,0.00021681,2]
[350543021,1737957052889,-500.0,0.00021681,2]
[350543022,1737957052899,-592.02,0.00021681,2]
[350543023,1737957052908,-500.0,0.00021681,2]
[350543024,1737957052918,-500.0,0.00021681,2]
[350543025,1737957052928,-500.0,0.00021681,2]
[350543026,1737957052937,-151.0,0.00021682,2]
[350543027,1737957052947,-500.0,0.00021682,2]
[350543028,1737957052955,-500.0,0.00021682,2]
[350543029,1737957052964,-500.0,0.00021682,2]
[350543030,1737957052973,-1516.85,0.00021682,2]
[350543031,1737957052983,-2321.01,0.00021682,2]
[350543032,1737957052992,-500.0,0.00021682,2]
[350543033,1737957053002,-500.0,0.00021682,2]
[350543034,1737957053011,-500.0,0.00021682,2]
[350543035,1737957053021,-1282.49,0.00021682,2]
[350543036,1737957053032,-500.0,0.00021682,2]
[350543037,1737957053042,-1004.59,0.00021682,2]
[350543038,1737957053052,-500.0,0.00021682,2]
[350543039,1737957053063,-539.72611,0.00021682,2]
[350543040,1737957053073,-592.66,0.00021682,2]
[350543041,1737957053082,-539.72611,0.00021682,2]
[350543042,1737957053093,-500.0,0.00021682,2]
[350543043,1737957053102,-512.72,0.00021682,2]
[350543044,1737957053112,-500.0,0.00021682,2]
[350543045,1737957053122,-500.0,0.00021682,2]
[350543046,1737957053133,-500.0,0.00021682,2]
[350543047,1737957053142,-3373.73376777,0.00021682,2]
[350543048,1737957053156,-669.81200107,0.00021682,2]
[350543049,1737957053168,-314.74,0.00021682,2]
[350543050,1737957053181,-26.41423116,0.00021682,2]
[350543051,1737957053190,-500.0,0.00021682,2]
[350543052,1737957053199,-805.23,0.00021682,2]
[350543053,1737957053210,-500.0,0.00021682,2]
[350543054,1737957053221,-500.0,0.00021682,2]
[350543055,1737957053230,-500.0,0.00021682,2]
[350543056,1737957053239,-500.0,0.00021682,2]
[350543057,1737957053249,-1085.98,0.00021682,2]
[350543058,1737957053259,-1950.05,0.00021682,2]
[350543059,1737957053269,-500.0,0.00021682,2]
[350543060,1737957053279,-500.0,0.00021682,2]
[350543061,1737957053289,-500.0,0.00021682,2]
[350543062,1737957053298,-500.0,0.00021682,2]
[350543063,1737957053308,-613.81,0.00021682,2]
[350543064,1737957053318,-936.14,0.00021682,2]
[350543065,1737957053327,-500.0,0.00021682,2]
[350543066,1737957053336,-655.16,0.00021682,2]
[350543067,1737957053346,-500.0,0.00021682,2]
[350543068,1737957053355,-500.0,0.00021682,2]
[350543069,1737957053364,-500.0,0.00021682,2]
[350543070,1737957053373,-759.63,0.00021682,2]
[350543071,1737957053384,-500.0,0.00021682,2]
[350543072,1737957053393,-395.31835985,0.00021682,2]
[350543073,1737957053402,-500.0,0.00021682,2]
[350543074,1737957053412,-500.0,0.00021682,2]
[350543075,1737957053422,-500.0,0.00021682,2]
[350543076,1737957053432,-500.0,0.00021682,2]
[350543077,1737957053441,-500.0,0.00021682,2]
[350543078,1737957053451,-500.0,0.00021682,2]
[350543079,1737957053537,-576.99,0.00021682,2]
[350543080,1737957053546,-3661.48,0.00021682,2]
[350543081,1737957053556,-547.59714172,0.00021682,2]
[350543082,1737957053565,-500.0,0.00021682,2]
[350543083,1737957053575,-500.0,0.00021682,2]
[350543084,1737957053585,-500.0,0.00021682,2]
[350543085,1737957053594,-500.0,0.00021683,2]
[350543086,1737957053604,-500.0,0.00021683,2]
[350543087,1737957053614,-500.0,0.00021683,2]
[350543088,1737957053623,-500.0,0.00021683,2]
[350543089,1737957053635,-908.43,0.00021683,2]
[350543090,1737957053644,-500.0,0.00021683,2]
[350543091,1737957053654,-500.0,0.00021683,2]
[350543092,1737957053664,-500.0,0.00021683,2]
[350543093,1737957053673,-500.0,0.00021683,2]
[350543094,1737957053682,-500.0,0.00021683,2]
[350543095,1737957053692,-342.0515566,0.00021683,2]
[350543096,1737957053701,-500.0,0.00021683,2]
[350543097,1737957053711,-500.0,0.00021683,2]
[350543098,1737957053720,-500.0,0.00021683,2]
[350543099,1737957053729,-500.0,0.00021683,2]
[350543100,1737957053738,-500.0,0.00021683,2]
[350543101,1737957053748,-500.0,0.00021683,2]
[350543102,1737957053757,-500.0,0.00021683,2]
[350543103,1737957053767,-500.0,0.00021683,2]
[350543104,1737957053776,-500.0,0.00021683,2]
[350543105,1737957053785,-500.0,0.00021683,2]
[350543106,1737957053794,-500.0,0.00021683,2]
[350543107,1737957053803,-500.0,0.00021683,2]
[350543108,1737957053813,-500.0,0.00021683,2]
[350543109,1737957053822,-500.0,0.00021683,2]
[350543110,1737957053831,-500.0,0.00021683,2]
[350543111,1737957053840,-500.0,0.00021683,2]
[350543112,1737957053849,-500.0,0.00021683,2]
[350543113,1737957053859,-500.0,0.00021683,2]
[350543114,1737957053868,-500.0,0.00021683,2]
[350543115,1737957053879,-500.0,0.00021683,2]
[350543116,1737957053888,-752.42,0.00021683,2]
[350543117,1737957053898,-500.0,0.00021683,2]
[350543118,1737957053907,-500.0,0.00021683,2]
[350543119,1737957053916,-500.0,0.00021683,2]
[350543120,1737957053925,-506.45239383,0.00021683,2]
[350543121,1737957053934,-500.0,0.00021683,2]
[350543122,1737957053943,-500.0,0.00021683,2]
[350543123,1737957053952,-11078.74,0.00021683,2]
[350543124,1737957053961,-500.0,0.00021683,2]
[350543125,1737957053970,-500.0,0.00021683,2]
[350543126,1737957053979,-500.0,0.00021683,2]
[350543127,1737957053988,-500.0,0.00021683,2]
[350543128,1737957053997,-500.0,0.00021683,2]
[350543129,1737957054007,-500.0,0.00021683,2]
[350543130,1737957054017,-500.0,0.00021683,2]
[350543131,1737957054026,-500.0,0.00021683,2]
[350543132,1737957054036,-500.0,0.00021683,2]
[350543133,1737957054045,-153.195779,0.00021683,2]
[350543134,1737957054054,-500.0,0.00021683,2]
[350543135,1737957054064,-500.0,0.00021683,2]
[350543136,1737957054074,-151.0,0.00021683,2]
[350543137,1737957054083,-500.0,0.00021683,2]
[350543138,1737957054093,-500.0,0.00021683,2]
[350543139,1737957054103,-500.0,0.00021683,2]
[350543140,1737957054114,-500.0,0.00021683,2]
[350543141,1737957054123,-500.0,0.00021683,2]
[350543142,1737957054134,-446.977928,0.00021683,2]
[350543143,1737957054143,-446.977928,0.00021683,2]
[350543144,1737957054152,-500.0,0.00021683,2]
[350543145,1737957054161,-223.0,0.00021684,2]
[350543146,1737957054172,-500.0,0.00021684,2]
[350543147,1737957054181,-500.0,0.00021684,2]
[350543148,1737957054190,-500.0,0.00021684,2]
[350543149,1737957054199,-500.0,0.00021684,2]
[350543150,1737957054208,-500.0,0.00021684,2]
[350543151,1737957054217,-349.36706878,0.00021684,2]
[350543152,1737957054226,-500.0,0.00021684,2]
[350543153,1737957054236,-500.0,0.00021684,2]
[350543154,1737957054245,-500.0,0.00021684,2]
[350543155,1737957054254,-500.0,0.00021684,2]
[350543156,1737957054264,-500.0,0.00021684,2]
[350543157,1737957054273,-500.0,0.00021684,2]
[350543158,1737957054291,-500.0,0.00021684,2]
[350543159,1737957054300,-500.0,0.00021684,2]
[350543160,1737957054309,-500.0,0.00021684,2]
[350543161,1737957054318,-500.0,0.00021684,2]
[350543162,1737957054328,-500.0,0.00021684,2]
[350543163,1737957054337,-500.0,0.00021684,2]
[350543164,1737957054346,-500.0,0.00021684,2]
[350543165,1737957054355,-500.0,0.00021684,2]
[350543166,1737957054364,-500.0,0.00021684,2]
[350543167,1737957054373,-500.0,0.00021684,2]
[350543168,1737957054384,-500.0,0.00021684,2]
[350543169,1737957054393,-500.0,0.00021684,2]
[350543170,1737957054402,-500.0,0.00021684,2]
[350543171,1737957054411,-500.0,0.00021684,2]
[350543172,1737957054421,-500.0,0.00021684,2]
[350543173,1737957054430,-500.0,0.00021684,2]
[350543174,1737957054440,-500.0,0.00021684,2]
[350543175,1737957054450,-501.28012118,0.00021684,2]
[350543176,1737957054459,-500.0,0.00021684,2]
[350543177,1737957054470,-500.0,0.00021684,2]
[350543178,1737957054479,-500.0,0.00021684,2]
[350543179,1737957054489,-282.41632789,0.00021684,2]
[350543180,1737957054499,-500.0,0.00021684,2]
[350543181,1737957054509,-500.0,0.00021684,2]
[350543182,1737957054519,-501.40249674,0.00021684,2]
[350543183,1737957054528,-501.04616261,0.00021684,2]
[350543184,1737957054538,-500.0,0.00021684,2]
[350543185,1737957054547,-500.0,0.00021684,2]
[350543186,1737957054557,-502.26378831,0.00021684,2]
[350543187,1737957054566,-500.0,0.00021684,2]
[350543188,1737957054576,-500.0,0.00021684,2]
[350543189,1737957054586,-500.0,0.00021684,2]
[350543190,1737957054596,-500.0,0.00021684,2]
[350543191,1737957054606,-500.0,0.00021684,2]
[350543192,1737957054616,-500.0,0.00021684,2]
[350543193,1737957054626,-504.86,0.00021684,2]
[350543194,1737957054645,-500.0,0.00021684,2]
[350543195,1737957054655,-500.0,0.00021818,2]
[350543196,1737957054666,-500.0,0.00021818,2]
[350543197,1737957054675,-1409.61,0.00021818,2]
[350543198,1737957054685,-500.0,0.00021818,2]
[350543199,1737957054694,-592.02,0.00021818,2]
[350543200,1737957054704,-500.0,0.00021818,2]
[350543201,1737957054714,-500.0,0.00021818,2]
[350543202,1737957054723,-500.0,0.00021818,2]
[350543203,1737957054732,-500.0,0.00021819,2]
[350543204,1737957054742,-500.0,0.00021819,2]
[350543205,1737957054751,-1516.85,0.00021819,2]
[350543206,1737957054761,-2321.01,0.00021819,2]
[350543207,1737957054770,-500.0,0.00021819,2]
[350543208,1737957054779,-620.72,0.00021819,2]
[350543209,1737957054788,-500.0,0.00021819,2]
[350543210,1737957054797,-1282.49,0.00021819,2]
[350543211,1737957054806,-500.0,0.00021819,2]
[350543212,1737957054815,-1004.59,0.00021819,2]
[350543213,1737957054825,-500.0,0.00021819,2]
[350543214,1737957054833,-592.66,0.00021819,2]
[350543215,1737957054843,-637.22,0.00021819,2]
[350543216,1737957054852,-512.72,0.00021819,2]
[350543217,1737957054861,-500.0,0.00021819,2]
[350543218,1737957054870,-500.0,0.00021819,2]
[350543219,1737957054881,-500.0,0.00021819,2]
[350543220,1737957054892,-4384.7,0.00021819,2]
[350543221,1737957054902,-500.0,0.00021819,2]
[350543222,1737957054911,-805.23,0.00021819,2]
[350543223,1737957054921,-500.0,0.00021819,2]
[350543224,1737957054930,-500.0,0.00021819,2]
[350543225,1737957054939,-500.0,0.00021819,2]
[350543226,1737957054948,-500.0,0.00021819,2]
[350543227,1737957054957,-1085.98,0.00021819,2]
[350543228,1737957054966,-1950.05,0.00021819,2]
[350543229,1737957054975,-500.0,0.00021819,2]
[350543230,1737957055052,-500.0,0.00021819,2]
[350543231,1737957055062,-500.0,0.00021819,2]
[350543232,1737957055076,-500.0,0.00021819,2]
[350543233,1737957055085,-613.81,0.00021819,2]
[350543234,1737957055095,-936.14,0.00021819,2]
[350543235,1737957055103,-500.0,0.00021819,2]
[350543236,1737957055114,-655.16,0.00021819,2]
[350543237,1737957055124,-579.76,0.00021819,2]
[350543238,1737957055138,-500.0,0.00021819,2]
[350543239,1737957055146,-500.0,0.00021819,2]
[350543240,1737957055156,-759.63,0.00021819,2]
[350543241,1737957055166,-500.0,0.00021819,2]
[350543242,1737957055177,-500.0,0.00021819,2]
[350543243,1737957055188,-260.08,0.00021819,2]
[350543244,1737957055199,-500.0,0.00021819,2]
[350543245,1737957055209,-3456.046116,0.00021819,2]
[350543246,1737957055220,-500.0,0.00021819,2]
[350543247,1737957055230,-3456.046116,0.00021819,2]
[350543248,1737957055239,-500.0,0.00021819,2]
[350543249,1737957055248,-576.99,0.00021819,2]
[350543250,1737957055258,-3661.48,0.00021819,2]
[350543251,1737957055266,-500.0,0.00021819,2]
[350543252,1737957055276,-500.0,0.00021819,2]
[350543253,1737957055285,-500.0,0.0002182,2]
[350543254,1737957055295,-500.0,0.0002182,2]
[350543255,1737957055304,-500.0,0.0002182,2]
[350543256,1737957055314,-908.43,0.0002182,2]
[350543257,1737957055323,-500.0,0.0002182,2]
[350543258,1737957055332,-500.0,0.0002182,2]
[350543259,1737957055342,-500.0,0.0002182,2]
[350543260,1737957055353,-500.0,0.0002182,2]
[350543261,1737957055362,-500.0,0.0002182,2]
[350543262,1737957055371,-500.0,0.0002182,2]
[350543263,1737957055385,-500.0,0.0002182,2]
[350543264,1737957055394,-500.0,0.0002182,2]
[350543265,1737957055403,-500.0,0.0002182,2]
[350543266,1737957055412,-500.0,0.0002182,2]
[350543267,1737957055421,-562.37,0.0002182,2]
[350543268,1737957055430,-500.0,0.0002182,2]
[350543269,1737957055440,-500.0,0.0002182,2]
[350543270,1737957055449,-500.0,0.0002182,2]
[350543271,1737957055459,-500.0,0.0002182,2]
[350543272,1737957055468,-500.0,0.0002182,2]
[350543273,1737957055477,-500.0,0.0002182,2]
[350543274,1737957055486,-500.0,0.0002182,2]
[350543275,1737957055495,-500.0,0.0002182,2]
[350543276,1737957055504,-500.0,0.0002182,2]
[350543277,1737957055513,-500.0,0.0002182,2]
[350543278,1737957055522,-500.0,0.0002182,2]
[350543279,1737957055531,-581.39,0.0002182,2]
[350543280,1737957055541,-500.0,0.0002182,2]
[350543281,1737957055551,-752.42,0.0002182,2]
[350543282,1737957055560,-500.0,0.0002182,2]
[350543283,1737957055569,-500.0,0.0002182,2]
[350543284,1737957055578,-500.0,0.0002182,2]
[350543285,1737957055587,-500.0,0.0002182,2]
[350543286,1737957055596,-500.0,0.0002182,2]
[350543287,1737957055605,-11078.74,0.0002182,2]
[350543288,1737957055615,-500.0,0.0002182,2]
[350543289,1737957055623,-500.0,0.0002182,2]
[350543290,1737957055638,-502.63453495,0.0002182,2]
[350543291,1737957055647,-500.0,0.0002182,2]
[350543292,1737957055656,-500.0,0.0002182,2]
[350543293,1737957055665,-500.0,0.0002182,2]
[350543294,1737957055674,-500.0,0.0002182,2]
[350543295,1737957055684,-500.0,0.0002182,2]
[350543296,1737957055692,-500.0,0.0002182,2]
[350543297,1737957055702,-517.15,0.0002182,2]
[350543298,1737957055711,-605.47,0.0002182,2]
[350543299,1737957055722,-500.0,0.0002182,2]
[350543300,1737957055732,-500.0,0.0002182,2]
[350543301,1737957055741,-272.9,0.00021821,2]
[350543302,1737957055750,-292.68,0.00021821,2]
[350543303,1737957055760,-500.0,0.00021821,2]
[350543304,1737957055769,-501.6713087,0.00021821,2]
[350543305,1737957055778,-500.0,0.00021821,2]
[350543306,1737957055787,-500.0,0.00021821,2]
[350543307,1737957055797,-503.39283605,0.00021821,2]
[350543308,1737957055806,-563.85,0.00021821,2]
[350543309,1737957055815,-500.0,0.00021821,2]
[350543310,1737957055823,-500.0,0.00021821,2]
[350543311,1737957055832,-500.0,0.00021821,2]
[350543312,1737957055842,-500.0,0.00021821,2]
[350543313,1737957055851,-500.0,0.00021821,2]
[350543314,1737957055861,-500.0,0.00021821,2]
[350543315,1737957055870,-500.0,0.00021821,2]
[350543316,1737957055879,-500.0,0.00021821,2]
[350543317,1737957055892,-500.0,0.00021821,2]
[350543318,1737957055901,-500.0,0.00021821,2]
[350543319,1737957055910,-914.126401,0.00021918,2]
[350543320,1737957055919,-914.126401,0.00021918,2]
[350543321,1737957055929,-914.126401,0.00021918,2]
[350543322,1737957055938,-914.126401,0.00021918,2]
[350543323,1737957055947,-500.0,0.00021955,2]
[350543324,1737957055957,-500.0,0.00021955,2]
[350543325,1737957055966,-1409.61,0.00021955,2]
[350543326,1737957055975,-592.02,0.00021955,2]
[350543327,1737957055984,-500.0,0.00021955,2]
[350543328,1737957055994,-500.0,0.00021955,2]
[350543329,1737957056003,-500.0,0.00021955,2]
[350543330,1737957056012,-1516.85,0.00021956,2]
[350543331,1737957056021,-2321.01,0.00021956,2]
[350543332,1737957056031,-407.16,0.00021956,2]
[350543333,1737957056040,-1282.49,0.00021956,2]
[350543334,1737957056049,-500.0,0.00021956,2]
[350543335,1737957056058,-1004.59,0.00021956,2]
[350543336,1737957056068,-500.0,0.00021956,2]
[350543337,1737957056078,-592.66,0.00021956,2]
[350543338,1737957056087,-512.72,0.00021956,2]
[350543339,1737957056098,-500.0,0.00021956,2]
[350543340,1737957056109,-500.0,0.00021956,2]
[350543341,1737957056119,-4384.7,0.00021956,2]
[350543342,1737957056128,-805.23,0.00021956,2]
[350543343,1737957056142,-500.0,0.00021956,2]
[350543344,1737957056152,-500.0,0.00021956,2]
[350543345,1737957056162,-500.0,0.00021956,2]
[350543346,1737957056172,-1085.98,0.00021956,2]
[350543347,1737957056183,-1950.05,0.00021956,2]
[350543348,1737957056192,-500.0,0.00021956,2]
[350543349,1737957056202,-500.0,0.00021956,2]
[350543350,1737957056211,-613.81,0.00021956,2]
[350543351,1737957056221,-936.14,0.00021956,2]
[350543352,1737957056231,-500.0,0.00021956,2]
[350543353,1737957056240,-655.16,0.00021956,2]
[350543354,1737957056250,-500.0,0.00021956,2]
[350543355,1737957056259,-500.0,0.00021956,2]
[350543356,1737957056270,-759.63,0.00021956,2]
[350543357,1737957056279,-500.0,0.00021956,2]
[350543358,1737957056289,-500.0,0.00021956,2]
[350543359,1737957056298,-500.0,0.00021956,2]
[350543360,1737957056308,-500.0,0.00021956,2]
[350543361,1737957056317,-500.0,0.00021956,2]
[350543362,1737957056326,-576.99,0.00021956,2]
[350543363,1737957056335,-3661.48,0.00021956,2]
[350543364,1737957056344,-500.0,0.00021956,2]
[350543365,1737957056354,-500.0,0.00021957,2]
[350543366,1737957056364,-500.0,0.00021957,2]
[350543367,1737957056373,-908.43,0.00021957,2]
[350543368,1737957056385,-500.0,0.00021957,2]
[350543369,1737957056454,-500.0,0.00021957,2]
[350543370,1737957056470,-500.0,0.00021957,2]
[350543371,1737957056479,-500.0,0.00021957,2]
[350543372,1737957056489,-500.0,0.00021957,2]
[350543373,1737957056498,-500.0,0.00021957,2]
[350543374,1737957056508,-500.0,0.00021957,2]
[350543375,1737957056519,-235.62,0.00021957,2]
[350543376,1737957056528,-500.0,0.00021957,2]
[350543377,1737957056538,-500.0,0.00021957,2]
[350543378,1737957056547,-500.0,0.00021957,2]
[350543379,1737957056555,-500.0,0.00021957,2]
[350543380,1737957056565,-373.88691648,0.00021957,2]
[350543381,1737957056575,-500.0,0.00021957,2]
[350543382,1737957056584,-545.48,0.00021957,2]
[350543383,1737957056593,-500.0,0.00021957,2]
[350543384,1737957056603,-581.29069021,0.00021957,2]
[350543385,1737957056612,-500.0,0.00021957,2]
[350543386,1737957056622,-752.42,0.00021957,2]
[350543387,1737957056632,-500.0,0.00021957,2]
[350543388,1737957056641,-547.67,0.00021957,2]
[350543389,1737957056650,-500.0,0.00021957,2]
[350543390,1737957056659,-500.0,0.00021957,2]
[350543391,1737957056668,-11078.74,0.00021957,2]
[350543392,1737957056677,-500.0,0.00021957,2]
[350543393,1737957056687,-500.0,0.00021957,2]
[350543394,1737957056696,-500.0,0.00021957,2]
[350543395,1737957056706,-500.0,0.00021957,2]
[350543396,1737957056715,-500.0,0.00021957,2]
[350543397,1737957056726,-500.0,0.00021957,2]
[350543398,1737957056735,-500.0,0.00021957,2]
[350543399,1737957056744,-500.0,0.00021958,2]
[350543400,1737957056753,-500.0,0.00021958,2]
[350543401,1737957056763,-500.0,0.00021958,2]
[350543402,1737957056771,-500.0,0.00021958,2]
[350543403,1737957056781,-500.0,0.00021958,2]
[350543404,1737957056789,-500.0,0.00021958,2]
[350543405,1737957056799,-385.56,0.00021958,2]
[350543406,1737957056808,-500.0,0.00021958,2]
[350543407,1737957056818,-249.1,0.00021958,2]
[350543408,1737957056828,-500.0,0.00021958,2]
[350543409,1737957056837,-588.58,0.00021958,2]
[350543410,1737957056846,-500.0,0.00022092,2]
[350543411,1737957056855,-500.0,0.00022092,2]
[350543412,1737957056864,-1409.61,0.00022092,2]
[350543413,1737957056873,-592.02,0.00022092,2]
[350543414,1737957056883,-500.0,0.00022092,2]
[350543415,1737957056892,-500.0,0.00022092,2]
[350543416,1737957056901,-500.0,0.00022092,2]
[350543417,1737957056910,-151.0,0.00022093,7]
[350543418,1737957056920,-1516.85,0.00022093,2]
[350543419,1737957056929,-2321.01,0.00022093,2]
[350543420,1737957056939,-1282.49,0.00022093,2]
[350543421,1737957056948,-500.0,0.00022093,2]
[350543422,1737957056958,-1004.59,0.00022093,2]
[350543423,1737957056968,-500.0,0.00022093,2]
[350543424,1737957056977,-539.72611,0.00022093,7]
[350543425,1737957056986,-592.66,0.00022093,2]
[350543426,1737957056995,-539.72611,0.00022093,7]
[350543427,1737957057004,-512.72,0.00022093,2]
[350543428,1737957057014,-500.0,0.00022093,2]
[350543429,1737957057023,-500.0,0.00022093,2]
[350543430,1737957057032,-4384.7,0.00022093,2]
[350543431,1737957057042,-805.23,0.00022093,2]
[350543432,1737957057051,-500.0,0.00022093,2]
[350543433,1737957057060,-500.0,0.00022093,2]
[350543434,1737957057074,-500.0,0.00022093,2]
[350543435,1737957057084,-1085.98,0.00022093,2]
[350543436,1737957057094,-1950.05,0.00022093,2]
[350543437,1737957057103,-500.0,0.00022093,2]
[350543438,1737957057114,-613.81,0.00022093,2]
[350543439,1737957057123,-936.14,0.00022093,2]
[350543440,1737957057134,-500.0,0.00022093,2]